fUSD/lending_fUSD_20250417
["ID","MTS","AMOUNT","RATE_DAILY","PERIOD"]
[358299472,1744902640634,-500.62631844,0.00070252,120]
[358299473,1744902640643,-167.948247,0.00070652,52]
[358299474,1744902640653,-166.66,0.00070852,120]
[358299475,1744902640662,-151.0,0.00070986,120]
[358299476,1744902640672,-276.83,0.00071631,120]
[358299477,1744902640685,-300.0,0.000718,26]
[358299478,1744902640695,-600.0,0.000719,26]
[358299479,1744902640704,-150.0,0.00072,3]
[358299480,1744902640714,-356.76,0.00072115,2]
[358299481,1744902640724,-1000.0,0.00072499,30]
[358299482,1744902640733,-1263.24,0.00072499,120]
[358299483,1744902640743,-1263.24,0.00072499,120]
[358299484,1744902640753,-1263.24,0.00072499,120]
[358299485,1744902640762,-1263.24,0.00072499,120]
[358299486,1744902640772,-1000.0,0.00072861,120]
[358299487,1744902640781,-248.8207864,0.00073223,6]
[358299488,1744902640791,-952.38,0.00073481,30]
[358299489,1744902640800,-356.76,0.00074379,2]
[358299490,1744902640812,-200.0,0.00074719,120]
[358299491,1744902640822,-900.0,0.000749,27]
[358299492,1744902640832,-1263.24,0.00074999,120]
[358299493,1744902640842,-1263.24,0.00074999,120]
[358299494,1744902640852,-1263.24,0.00074999,120]
[358299495,1744902640862,-1263.24,0.00074999,120]
[358299496,1744902640871,-6418.04,0.00075,60]
[358299497,1744902640880,-3969.84577958,0.00075455,15]
[358299498,1744902640891,-177.78,0.00075705,2]
[358299499,1744902640900,-500.62631839,0.00076027,120]
[358299500,1744902640910,-486.38,0.00076249,120]
[358299501,1744902640920,-3969.84577958,0.00076566,15]
[358299502,1744902640929,-356.76,0.00076643,2]
[358299503,1744902640939,-163.29,0.00076929,2]
[358299504,1744902640948,-151.0,0.00077315,120]
[358299505,1744902640958,-1263.24,0.00077499,120]
[358299506,1744902640967,-1263.24,0.00077499,120]
[358299507,1744902640977,-1263.24,0.00077499,120]
[358299508,1744902640987,-1263.24,0.00077499,120]
[358299510,1744902640997,-3969.84577958,0.00077678,15]
[358299511,1744902641007,-1200.0,0.000779,28]
[358299512,1744902641016,-167.948247,0.00077901,62]
[358299513,1744902641026,-154.78,0.00078465,120]
[358299514,1744902641036,-3969.84577958,0.00078789,15]
[358299515,1744902641046,-356.76,0.00078907,2]
[358299516,1744902641056,-3969.84577958,0.000799,15]
[358299517,1744902641067,-1500.0,0.000799,29]
[358299518,1744902641077,-1108.98090253,0.000799,51]
[358299519,1744902641086,-159.17867154,0.000799,67]
[358299520,1744902641096,-1000.0,0.00079999,30]
[358299521,1744902641107,-1263.24,0.00079999,120]
[358299522,1744902641117,-1263.24,0.00079999,120]
[358299523,1744902641125,-1263.24,0.00079999,120]
[358299524,1744902641134,-1263.24,0.00079999,120]
[358299525,1744902641144,-1263.24,0.00079999,120]
[358299526,1744902641154,-1263.24,0.00079999,120]
[358299527,1744902641163,-1263.24734797,0.00079999,120]
[358299528,1744902641173,-187.69034087,0.00079999,120]
[358299529,1744902641182,-239.20184716,0.00079999,120]
[358299530,1744902641192,-500.0,0.00079999,120]
[358299531,1744902641202,-233.94914363,0.00079999,120]
[358299532,1744902641212,-500.0,0.00079999,120]
[358299533,1744902641222,-500.0,0.00079999,120]
[358299534,1744902641232,-16290.9033459,0.0008,120]
[358299535,1744902641248,-340569.66230341,0.0008,120]
[358299536,1744902641261,-1624.10000006,0.0008,120]
[358299537,1744902641273,-276.11095953,0.0008,120]
[358299538,1744902641316,-32.54626026,0.0008,120]
[358299539,1744902641381,-27638.90061686,0.0008,120]
[358299540,1744902641530,-70244.73864013,0.0008,120]
[358299545,1744902645480,-790.19,0.00069998,2]
[358299547,1744902645490,-500.0,0.00069998,120]
[358299549,1744902645499,-392.17071819,0.00069998,120]
[358299550,1744902645511,-107.82928181,0.00069998,120]
[358299551,1744902645522,-5116.9772566,0.0008,120]
[358299552,1744902645611,-538206.06061725,0.0008,120]
[358299553,1744902645621,-111641.52,0.0008,120]
[358299554,1744902645631,-500.0,0.00080948,120]
[358299555,1744902645642,-500.0,0.00080948,120]
[358299556,1744902645652,-500.0,0.00080948,120]
[358299557,1744902645661,-500.0,0.00080948,120]
[358299558,1744902645670,-1000.0,0.00080956,120]
[358299559,1744902645680,-500.0,0.00080957,120]
[358299560,1744902645689,-500.0,0.00080957,120]
[358299561,1744902645699,-500.0,0.00080957,120]
[358299562,1744902645708,-500.0,0.00080957,2]
[358299563,1744902645717,-521.26,0.00080957,120]
[358299564,1744902645833,-500.0,0.00080957,120]
[358299565,1744902645843,-500.0,0.00080957,120]
[358299566,1744902645853,-500.0,0.00080957,120]
[358299567,1744902645863,-790.19,0.00080957,2]
[358299568,1744902645872,-355.18434952,0.00080957,120]
[358299569,1744902645882,-500.0,0.00080958,2]
[358299570,1744902645893,-454.54,0.00080958,120]
[358299571,1744902645903,-500.0,0.00080958,120]
[358299572,1744902645913,-500.0,0.00080958,120]
[358299573,1744902645922,-500.0,0.00080958,120]
[358299574,1744902645932,-500.0,0.00080958,120]
[358299575,1744902645941,-500.0,0.00080958,120]
[358299576,1744902645951,-568.34,0.00080958,120]
[358299577,1744902645961,-500.0,0.00080958,120]
[358299578,1744902645970,-485.78959782,0.00080958,120]
[358299579,1744902645980,-492.44312,0.00080958,120]
[358299580,1744902645989,-5754.09,0.00080958,7]
[358299581,1744902645998,-500.0,0.00080958,120]
[358299582,1744902646008,-500.0,0.00080958,120]
[358299583,1744902646018,-214.18073444,0.00080958,120]
[358299584,1744902646028,-500.0,0.00080958,120]
[358299585,1744902646038,-500.0,0.00080958,120]
[358299586,1744902646047,-531.398914,0.00080958,120]
[358299587,1744902646056,-500.0,0.00080958,120]
[358299588,1744902646067,-500.0,0.00080958,120]
[358299589,1744902646077,-652.69,0.00080958,120]
[358299590,1744902646087,-500.0,0.00080958,120]
[358299591,1744902646096,-500.0,0.00080958,120]
[358299592,1744902646105,-500.0,0.00080958,120]
[358299593,1744902646114,-500.0,0.00080958,120]
[358299594,1744902646124,-500.0,0.00080958,120]
[358299595,1744902646133,-500.0,0.00080958,120]
[358299596,1744902646142,-500.0,0.00080958,120]
[358299597,1744902646152,-500.0,0.00080958,120]
[358299598,1744902646161,-500.0,0.00080958,120]
[358299599,1744902646170,-500.0,0.00080958,120]
[358299600,1744902646179,-500.0,0.00080958,120]
[358299603,1744902646189,-500.0,0.00080958,120]
[358299605,1744902646198,-500.0,0.00080958,120]
[358299607,1744902646207,-500.0,0.00080958,120]
[358299610,1744902646216,-500.0,0.00080958,120]
[358299613,1744902646226,-500.0,0.00080958,120]
[358299615,1744902646235,-500.0,0.00080958,30]
[358299616,1744902646244,-500.0,0.00080958,120]
[358299617,1744902646254,-500.0,0.00080958,120]
[358299618,1744902646263,-500.0,0.00080958,120]
[358299619,1744902646273,-500.0,0.00080958,120]
[358299620,1744902646282,-500.0,0.00080958,120]
[358299621,1744902646291,-40104.2129003,0.00081,120]
[358299622,1744902646305,-28654.05391223,0.00081,120]
[358299623,1744902646324,-5631.65640833,0.00081,120]
[358299624,1744902646335,-85057.992101,0.00081,120]
[358299625,1744902646416,-398.86964521,0.00081,120]
[358299626,1744902646515,-378463.87192173,0.00081,120]
[358299627,1744902646627,-492.79316463,0.00081,120]
[358299644,1744902751758,152.238669,0.00052054,120]
[358299645,1744902752045,152.238669,0.00052054,120]
[358299646,1744902752338,152.238669,0.00052328,120]
[358299647,1744902752656,152.238669,0.00052328,120]
[358299648,1744902752956,152.238669,0.00052602,120]
[358299649,1744902753265,152.238669,0.00052602,120]
[358299650,1744902753700,152.238669,0.00052876,120]
[358299651,1744902753987,152.238669,0.00052876,120]
[358299652,1744902754704,152.238669,0.0005315,120]
[358299653,1744902755018,152.238669,0.0005315,120]
[358299654,1744902755329,152.238669,0.00053424,120]
[358299655,1744902755642,152.238669,0.00053424,120]
[358299656,1744902755944,152.238669,0.00053698,120]
[358299657,1744902756247,152.238669,0.00053698,120]
[358299658,1744902756544,152.238669,0.00053972,120]
[358299659,1744902756864,152.238669,0.00053972,120]
[358299660,1744902757177,152.238669,0.00054246,120]
[358299661,1744902757473,152.238669,0.00054246,120]
[358299662,1744902757792,152.238669,0.0005452,120]
[358299663,1744902758092,152.238669,0.00054794,120]
[358299664,1744902758399,152.238669,0.00054794,120]
[358299665,1744902758730,152.238669,0.00054931,120]
[358299666,1744902766246,270.0,0.0005,120]
[358299667,1744902768031,270.0,0.00052,120]
[358299668,1744902769756,270.0,0.00054,120]
[358299669,1744902823547,177.73,0.00035885,30]
[358299671,1744902976689,150.0,0.00053303,10]
[358299672,1744902976895,150.0,0.00053303,10]
[358299673,1744902977098,200.0,0.00053303,10]
[358299674,1744902979707,150.0,0.00053303,10]
[358299675,1744902982164,150.0,0.00053303,10]
[358299676,1744902983111,150.0,0.00053303,10]
[358299677,1744902983257,150.0,0.00053303,10]
[358299678,1744902983603,200.0,0.00053303,10]
[358299679,1744902986774,150.0,0.00053303,10]
[358299680,1744902988685,150.0,0.00053303,10]
[358299681,1744902988892,150.0,0.00053303,10]
[358299682,1744902989088,200.0,0.00053303,10]
[358299683,1744902990000,193.40514531,0.00053303,10]
[358299684,1744902991607,150.0,0.00053303,10]
[358299685,1744902995591,500.0,0.00053303,10]
[358299686,1744902995971,500.0,0.00053303,10]
[358299687,1744902996172,244.0,0.00053303,10]
[358299688,1744902997720,150.0,0.00053303,10]
[358299689,1744902998724,500.0,0.00053303,10]
[358299690,1744902998922,500.0,0.00053303,10]
[358299691,1744902999118,500.0,0.00053303,10]
[358299692,1744902999293,363.0,0.00053303,10]
[358299693,1744903092786,151.0,0.00045,120]
[358299694,1744903099000,300.0,0.00052,120]
[358299695,1744903385976,250.0,0.00017,2]
[358299696,1744903387077,300.0,0.00019,2]
[358299697,1744903388207,350.0,0.00021,2]
[358299698,1744903389313,400.0,0.00023,2]
[358299699,1744903508604,43911.76377501,0.0002,2]
[358299700,1744903508640,66666.0,0.0002,2]
[358299701,1744903508676,66666.0,0.0002,2]
[358299702,1744903508708,3830.17171063,0.0002,2]
[358299703,1744903508739,4730.17171063,0.0002,2]
[358299704,1744903508768,4730.17171063,0.0002,2]
[358299705,1744903508797,4730.17171063,0.0002,2]
[358299706,1744903508827,4730.17171063,0.0002,2]
[358299707,1744903508859,4730.17171063,0.0002,2]
[358299708,1744903508889,4730.17171063,0.0002,2]
[358299709,1744903508919,4730.17171063,0.0002,2]
[358299710,1744903508949,4730.17171063,0.0002,2]
[358299711,1744903508976,4730.17171063,0.0002,2]
[358299712,1744903605138,-476.2243811,0.000199,2]
[358299713,1744903630100,-300.0,0.000198,7]
[358299714,1744903630123,-77.66762129,0.000199,2]
[358299715,1744903630147,-41.01509496,0.000199,2]
[358299716,1744903641101,-125.47040768,0.000199,2]
[358299717,1744903641125,-600.0,0.000199,7]
[358299718,1744903641148,-500.0,0.00019973,2]
[358299719,1744903641170,-1000.0,0.00019999,2]
[358299720,1744903641194,-300.0,0.00019999,2]
[358299721,1744903641219,-187.69034087,0.00019999,2]
[358299722,1744903641252,-239.20184716,0.00019999,2]
[358299723,1744903641282,-2195.40427818,0.0002,2]
[358299724,1744903643143,-2856.22487661,0.0002,2]
[358299725,1744903644087,-362.27061183,0.0002,2]
[358299726,1744903651087,-2153.62489985,0.000199,2]
[358299727,1744903651118,-1129.75888349,0.000199,2]
[358299730,1744903749127,-4320.774724,0.000199,2]
[358299731,1744903753224,-3757.06757369,0.000199,2]
[358299732,1744903753397,-20653.69521897,0.000199,2]
[358299733,1744903753420,-1748.9590455,0.000199,2]
[358299734,1744903753446,-220944.05633553,0.0002,2]
[358299735,1744903761331,-30488.19984,0.0002,2]
[358299736,1744903771115,-34442.1196,0.0002,2]
[358299744,1744903831526,-184.26593498,0.000199,2]
[358299745,1744903831538,-2118.8818,0.000199,2]
[358299746,1744903831549,-159.17867154,0.000199,2]
[358299747,1744903831560,-500.0,0.00019973,2]
[358299748,1744903831571,-300.0,0.00019999,2]
[358299749,1744903831581,-300.0,0.00019999,2]
[358299750,1744903831593,-2579.1185211,0.0002,2]
[358299751,1744903831606,-35156.45609826,0.0002,2]
[358299752,1744903831619,-785.47198371,0.0002,2]
[358299753,1744903831631,-2800.37407409,0.0002,2]
[358299754,1744903831645,-1643.76197405,0.0002,2]
[358299755,1744903831672,-798.32798818,0.0002,2]
[358299784,1744903837556,-314430.52307108,0.0002,2]
[358299785,1744903837568,-340569.66230341,0.0002,2]
[358299786,1744903837580,-17537.3442,0.0002,2]
[358299787,1744903837628,-2612.42613901,0.0002,2]
[358299788,1744903837702,-4284.90003856,0.0002,2]
[358299789,1744903837714,-430.97999785,0.0002,2]
[358299790,1744903837770,-892.581,0.0002,2]
[358299791,1744903837897,-841.90522841,0.0002,2]
[358299792,1744903837908,-570.13742456,0.0002,2]
[358299793,1744903837920,-1620.20000006,0.0002,2]
[358299794,1744903837933,-5390.68405097,0.0002,2]
[358299795,1744903837946,-261.92,0.0002,2]
[358299796,1744903837958,-2843.95805324,0.0002,2]
[358299803,1744903839735,-3191.39276772,0.0002,2]
[358299804,1744903839748,-8527.40960001,0.0002,2]
[358299805,1744903839964,-649.20254879,0.0002,2]
[358299806,1744903840005,-75096.14978142,0.0002,2]
[358299807,1744903840019,-341.86579367,0.0002,2]
[358299808,1744903840050,-446.03507343,0.0002,2]
[358299809,1744903840135,-332.11759923,0.0002,2]
[358299821,1744903843270,-1300.14361712,0.0002,2]
[358299822,1744903843537,-52.91382015,0.0002,2]
[358299826,1744903845703,-4141.97292048,0.0002,2]
[358299827,1744903845714,-1190.71399994,0.0002,2]
[358299828,1744903845726,-7421.37047021,0.0002,2]
[358299829,1744903845901,-315.0840817,0.0002,2]
[358300108,1744903948954,-553.8920024,0.000199,2]
[358300109,1744903948985,-315.9481,0.000199,2]
[358300110,1744903949013,-1000.0,0.000199,2]
[358300111,1744903949043,-250.0,0.0001995,2]
[358300112,1744903949075,-7880.1598976,0.0002,2]
[358300113,1744903960095,-3291.326581,0.000199,2]
[358300114,1744903960124,-1708.673419,0.000199,2]
[358300115,1744904037881,598789.02366606,0.00053613,30]
[358300116,1744904194006,1000.0,0.00025,90]
[358300117,1744904495067,184.09,0.00016712,2]
[358300118,1744904640684,-473.53862293,0.00019789,2]
[358300119,1744904698647,-236.0,0.0001979,2]
[358300120,1744904795841,195.26149716,0.00019789,2]
[358300121,1744904797126,331.19987991,0.00019789,2]
[358300122,1744904797149,227.0,0.00019789,2]
[358300123,1744904823080,-169.69666822,0.00019789,2]
[358300124,1744904830130,-227.6769,0.0001979,2]
[358300125,1744904830153,-195.26149716,0.000198,2]
[358300126,1744904830177,-150.0,0.00019863,2]
[358300127,1744904830202,-1059.66975678,0.0001988,2]
[358300128,1744904830227,-300.0,0.00019889,2]
[358300129,1744904830253,-300.0,0.00019889,2]
[358300130,1744904830278,-790.22924834,0.00019889,2]
[358300131,1744904830300,-261.55364469,0.0001989,2]
[358300132,1744904830322,-10077.36953971,0.0001989,2]
[358300133,1744904830345,-1000.0,0.00019899,2]
[358300134,1744904830368,-10220.31773979,0.000199,2]
[358300135,1744904833184,-1536.15927313,0.000199,2]
[358300136,1744904834095,-1267.68856778,0.000199,2]
[358300137,1744904841077,-8059.15334564,0.000199,2]
[358300138,1744904846194,-8899.78190369,0.000199,2]
[358300139,1744904849112,-1282.88347252,0.000199,2]
[358300140,1744904853102,-282.62204419,0.000199,2]
[358300141,1744904892667,-300.0,0.00019899,2]
[358300142,1744904892694,-300.0,0.00019899,2]
[358300143,1744904892793,-433.08638991,0.000199,2]
[358300144,1744904916046,400.0,0.00013699,2]
[358300145,1744904916071,830.30333178,0.00013699,2]
[358300146,1744904916097,2179.49666822,0.00013699,2]
[358300147,1744904916597,3409.8,0.00013699,2]
[358300148,1744904916919,3409.8,0.00013699,2]
[358300149,1744904917221,3409.8,0.00013699,2]
[358300150,1744904917547,3409.8,0.00013699,2]
[358300151,1744904917858,3409.8,0.00013699,2]
[358300152,1744904918235,3409.8,0.00013699,2]
[358300153,1744904918615,3409.8,0.00013699,2]
[358300154,1744904919116,3409.8,0.00013699,2]
[358300155,1744904919540,3409.8,0.00013699,2]
[358300156,1744904919907,3409.8,0.00013699,2]
[358300157,1744904920271,3409.8,0.00013699,2]
[358300158,1744904920578,3409.8,0.00013699,2]
[358300159,1744904921446,3409.8,0.00013699,2]
[358300160,1744904921857,3409.8,0.00013699,2]
[358300161,1744904922207,3409.8,0.00013699,2]
[358300162,1744904923082,3409.8,0.00013699,2]
[358300163,1744904923456,3409.8,0.00013699,2]
[358300164,1744904923790,3409.8,0.00013699,2]
[358300165,1744904924315,3409.81712653,0.00013699,2]
[358300166,1744904948084,-2436.82114435,0.000199,2]
[358300167,1744904948108,-3084.4283399,0.000199,2]
[358300168,1744904950090,-1513.1361601,0.000199,2]
[358300169,1744904950113,-2673.42435822,0.000199,2]
[358300170,1744904955100,-4958.88404178,0.000199,2]
[358300171,1744904955123,-500.0,0.000199,2]
[358300172,1744904955145,-842.0564,0.000199,2]
[358300173,1744904955165,-1000.0,0.000199,2]
[358300174,1744904955190,-224.6048,0.000199,2]
[358300175,1744904955211,-315.9481,0.000199,2]
[358300176,1744904955235,-2362.32800549,0.000199,2]
[358300177,1744904955256,-885.8532,0.000199,2]
[358300178,1744904955279,-4534.3765627,0.000199,2]
[358300179,1744904959075,-2722.432062,0.000199,2]
[358300180,1744904967170,-3673.84086035,0.000199,2]
[358300181,1744904968105,-4525.478692,0.000199,2]
[358300182,1744904973224,-21788.10782295,0.000199,2]
[358300183,1744904973246,-263.0498,0.000199,2]
[358300184,1744904973282,-553.89200239,0.000199,2]
[358300185,1744904973310,-1000.0,0.000199,2]
[358300186,1744904973336,-2500.0,0.000199,2]
[358300187,1744904973359,-208.82177973,0.000199,2]
[358300188,1744904973384,-1000.0,0.00019999,2]
[358300189,1744904973407,-985.5192,0.00019999,2]
[358300190,1744904973434,-25853.06915493,0.0002,2]
[358300191,1744904974098,-609.763644,0.0002,2]
[358300192,1744905022819,-500.0,0.000199,2]
[358300193,1744905031634,-762.17542217,0.0002,2]
[358300194,1744905031646,-42637.98786694,0.0002,2]
[358300195,1744905031660,-1334.0,0.0002,2]
[358300197,1744905031815,-1209.1542531,0.0002,2]
[358300198,1744905031826,-2371.61962806,0.0002,2]
[358300199,1744905031837,-64802.3313064,0.0002,2]
[358300200,1744905031848,-660.41752373,0.0002,2]
[358300201,1744905031860,-320.59153593,0.0002,2]
[358300202,1744905031871,-469.9405751,0.0002,2]
[358300203,1744905031884,-1056.39,0.0002,2]
[358300204,1744905031895,-1807.329251,0.0002,2]
[358300205,1744905031906,-527.22235995,0.0002,2]
[358300206,1744905031969,-618.43422222,0.0002,2]
[358300213,1744905037861,-656.04999995,0.0002,2]
[358300214,1744905037873,-14159.43070995,0.0002,2]
[358300215,1744905037885,-27868.60261838,0.0002,2]
[358300216,1744905038129,-2455.01867657,0.0002,2]
[358300217,1744905038140,-1526.48648536,0.0002,2]
[358300218,1744905038150,-3047.60139797,0.0002,2]
[358300219,1744905038160,-15138.68673451,0.0002,2]
[358300220,1744905038177,-400.0,0.0002,2]
[358300221,1744905038189,-8008.0,0.0002,2]
[358300222,1744905038201,-811.56971199,0.0002,2]
[358300230,1744905039954,-544.62966149,0.0002,2]
[358300231,1744905040123,-2258.60452208,0.0002,2]
[358300232,1744905040335,-894.80298521,0.0002,2]
[358300233,1744905040347,-316.57,0.0002,2]
[358300234,1744905040358,-405.40500001,0.0002,2]
[358300235,1744905040452,-3188.98126082,0.0002,2]
[358300275,1744905046338,-2277.23637983,0.0002,2]
[358300276,1744905046350,-8524.92475953,0.0002,2]
[358300277,1744905046513,-140.85428524,0.0002,2]
[358300278,1744905046663,-300.45091991,0.0002,2]
[358300280,1744905046776,-3197.7771321,0.0002,2]
[358300282,1744905046788,-5883.52751136,0.0002,2]
[358300295,1744905046913,-3827.46697372,0.0002,2]
[358300297,1744905046923,-1106.36,0.00021119,2]
[358300299,1744905046932,-1859.17651444,0.000215,2]
[358300302,1744905046942,-170.61,0.00021767,2]
[358300304,1744905046951,-420.0,0.00021774,2]
[358300306,1744905046960,-471.58167696,0.0002178,2]
[358300314,1744905047025,-480.06832304,0.0002178,2]
[358300316,1744905047034,-150.0,0.00021917,2]
[358300318,1744905047043,-1705.55,0.00021999,2]
[358300319,1744905047052,-250.0,0.00022,2]
[358300321,1744905047063,-150.0,0.00023287,2]
[358300322,1744905047075,-1106.36,0.00023383,2]
[358300323,1744905047084,-259.0,0.00023826,2]
[358300324,1744905047094,-1813.8,0.00024101,2]
[358300325,1744905047103,-7334.26184396,0.00024454,2]
[358300326,1744905047114,-800.0,0.00024454,2]
[358300327,1744905060534,500.0,0.000199,2]
[358300335,1744905098554,-754.9612,0.000199,2]
[358300336,1744905098582,-182.6456,0.000199,2]
[358300337,1744905098606,-62.3932,0.000199,2]
[358300338,1744905191639,250.0,0.00017,2]
[358300339,1744905192731,300.0,0.00019,2]
[358300340,1744905207058,450.0,0.00019701,2]
[358300341,1744905401413,191.57,0.0002716,120]
[358300342,1744905491022,208.57,0.00016712,2]
[358300343,1744905513884,791.43,0.00019699,2]
[358300345,1744905639763,150.0,0.00027,120]
[358300346,1744905934155,-287.07157934,0.00019452,2]
[358300347,1744906015086,-648.02550246,0.00019452,2]
[358300348,1744906037080,-921.08035044,0.00019452,2]
[358300349,1744906038092,-720.5077251,0.00019452,2]
[358300350,1744906038116,-250.0,0.0001955,2]
[358300351,1744906038141,-117.69762996,0.00019599,2]
[358300352,1744906039074,-72.13134943,0.00019599,2]
[358300353,1744906039097,-250.0,0.00019679,2]
[358300354,1744906039119,-21.92358447,0.00019699,2]
[358300355,1744906044139,-478.07641553,0.00019699,2]
[358300356,1744906044162,-500.0,0.00019699,2]
[358300357,1744906044191,-500.0,0.00019699,2]
[358300358,1744906044215,-507.98354872,0.00019773,2]
[358300359,1744906044240,-300.0,0.00019799,2]
[358300360,1744906044261,-300.0,0.00019899,2]
[358300361,1744906044282,-178.0,0.00019899,2]
[358300362,1744906044303,-937.6068,0.000199,2]
[358300363,1744906044323,-894.20664588,0.000199,2]
[358300364,1744906049086,-264.05916703,0.000199,2]
[358300365,1744906146321,-6293.78868709,0.000199,2]
[358300366,1744906146348,-250.0,0.0001995,2]
[358300367,1744906146370,-200.000001,0.0002,2]
[358300368,1744906146393,-170.61,0.00020568,2]
[358300369,1744906146416,-350.0,0.00021,2]
[358300370,1744906146438,-250.0,0.00021451,2]
[358300371,1744906146460,-250.0,0.0002189,2]
[358300372,1744906146481,-150.0,0.00023,5]
[358300373,1744906146504,-246.86665344,0.00023,5]
[358300374,1744906146526,-400.0,0.00023,2]
[358300375,1744906146550,-300.0,0.00024167,2]
[358300376,1744906146573,-1387.32,0.00024168,2]
[358300377,1744906146596,-151.0,0.0002444,2]
[358300378,1744906146618,-200.0,0.00024454,2]
[358300379,1744906146659,-10335.48400664,0.00024454,2]
[358300380,1744906146681,-156.3943608,0.00024664,2]
[358300381,1744906146704,-501.53143593,0.00024664,2]
[358300382,1744906146728,-200.0,0.00024699,2]
[358300383,1744906146753,-250.0,0.00024817,2]
[358300384,1744906146778,-200.0,0.00024946,2]
[358300385,1744906146803,-301.623053,0.00025,10]
[358300386,1744906146832,-450.0,0.00025,2]
[358300387,1744906146856,-200.0,0.00025195,2]
[358300388,1744906146880,-500.0,0.00025336,2]
[358300389,1744906146903,-301.75063953,0.00025336,2]
[358300390,1744906146925,-280.17335578,0.00025336,2]
[358300391,1744906146948,-502.5045184,0.00025336,2]
[358300392,1744906146971,-161.09676596,0.00025336,2]
[358300393,1744906146994,-200.0,0.00025447,2]
[358300394,1744906147016,-156.587,0.00025809,2]
[358300395,1744906147038,-183.68092461,0.00025814,2]
[358300396,1744906147061,-200.0,0.00025876,2]
[358300397,1744906147086,-651.51897764,0.0002611,2]
[358300398,1744906150220,-613.3455655,0.000198,2]
[358300399,1744906156085,-7895.125392,0.000198,2]
[358300400,1744906156111,-8907.09970563,0.000198,2]
[358300401,1744906165154,-4746.87953687,0.000198,2]
[358300402,1744906165176,-348.48102236,0.0002611,2]
[358300403,1744906165198,-9854.54,0.00026111,2]
[358300404,1744906165218,-500.0,0.0002619,2]
[358300405,1744906165239,-1024.48,0.00026319,2]
[358300406,1744906165260,-420.0,0.00026323,2]
[358300407,1744906165281,-8382.39,0.0002636,2]
[358300408,1744906165304,-1387.32,0.00026432,2]
[358300409,1744906165324,-300.0,0.00026538,2]
[358300410,1744906165348,-1609.72,0.00026572,2]
[358300411,1744906165369,-857.05,0.00026761,2]
[358300412,1744906165390,-1000.0,0.0002679,2]
[358300413,1744906165412,-1000.0,0.00026791,2]
[358300414,1744906165432,-1000.84,0.00026809,2]
[358300415,1744906165453,-155.55,0.00026841,2]
[358300416,1744906165478,-25419.54,0.00026877,2]
[358300417,1744906165500,-500.0,0.00027,2]
[358300418,1744906165521,-500.0,0.00027073,2]
[358300419,1744906165542,-1000.0,0.00027075,2]
[358300420,1744906165562,-2076.52,0.00027087,2]
[358300421,1744906165583,-200.0,0.0002716,2]
[358300422,1744906165606,-200.0,0.0002716,2]
[358300423,1744906165627,-253.22725471,0.00027178,2]
[358300424,1744906165652,-164.0,0.00027385,2]
[358300425,1744906165676,-952.38,0.00027397,15]
[358300426,1744906165698,-160.2,0.00027397,2]
[358300427,1744906165718,-23900.0,0.0002741,2]
[358300428,1744906165740,-2000.0,0.00027485,2]
[358300429,1744906165761,-315.9481,0.00027614,2]
[358300430,1744906165783,-156.82,0.00027648,30]